bitfinex/quotes_BTCUSD_20250716
["timestamp","ask_amount","ask_price","bid_price","bid_amount"]
[1752637155136,0.20746656,117580.0,117570.0,0.1312]
[1752637156177,0.18910656,117580.0,117570.0,0.30331142]
[1752637156397,0.18710656,117580.0,117570.0,0.79141017]
[1752637156604,0.18710656,117580.0,117570.0,0.83021545]
[1752637156820,0.18710656,117580.0,117570.0,0.43956188]
[1752637157007,0.17860179,117580.0,117570.0,0.72455653]
[1752637158819,0.17860179,117580.0,117570.0,0.70925653]
[1752637159051,0.17009695,117580.0,117570.0,0.51563962]
[1752637159264,0.17009695,117580.0,117570.0,0.42988]
[1752637160291,0.17009695,117580.0,117570.0,0.4267]
[1752637162426,0.58852524,117580.0,117570.0,0.2945]
[1752637162635,0.92852524,117580.0,117570.0,0.4247]
[1752637162866,0.92852524,117580.0,117570.0,0.1312]
[1752637163106,0.92852524,117580.0,117570.0,0.001]
[1752637169740,0.54637695,117580.0,117570.0,0.001]
[1752637169868,0.92852524,117580.0,117570.0,0.001]
[1752637170685,0.54637695,117580.0,117570.0,0.001]
[1752637170857,0.17527695,117580.0,117570.0,0.001]
[1752637171489,0.17527695,117580.0,117570.0,0.003]
[1752637172356,0.17527695,117580.0,117570.0,0.13116]
[1752637172562,0.17527695,117580.0,117570.0,0.001]
[1752637172991,0.17527695,117580.0,117570.0,0.13116]
[1752637176201,0.17527695,117580.0,117570.0,0.13316]
[1752637178544,0.17527695,117580.0,117570.0,0.13116]
[1752637180607,0.20777695,117580.0,117570.0,0.001]
[1752637180815,0.20777695,117580.0,117570.0,0.13116]
[1752637183051,0.49452817,117580.0,117570.0,0.13116]
[1752637183259,0.47802817,117580.0,117570.0,0.19148908]
[1752637183715,0.46202817,117580.0,117570.0,0.19148908]
[1752637186279,0.17527695,117580.0,117570.0,0.13116]
[1752637186470,0.46202817,117580.0,117570.0,0.13116]
[1752637187204,0.47702817,117580.0,117570.0,0.13116]
[1752637188068,0.49262817,117580.0,117570.0,0.13116]
[1752637196386,0.20587695,117580.0,117570.0,0.13116]
[1752637196617,0.49262817,117580.0,117570.0,0.13116]
[1752637200361,0.49262817,117580.0,117570.0,0.001]
[1752637200534,0.49262817,117580.0,117570.0,0.13112]
[1752637200774,0.49262817,117580.0,117570.0,0.001]
[1752637201189,0.49262817,117580.0,117570.0,0.13112]
[1752637201420,0.20587695,117580.0,117570.0,0.13112]
[1752637201850,0.49262817,117580.0,117570.0,0.13112]
[1752637203634,0.46202817,117580.0,117570.0,0.20225712]
[1752637204047,0.17009695,117580.0,117570.0,0.52471834]
[1752637205478,0.17009695,117580.0,117570.0,0.45358122]
[1752637205923,0.17009695,117580.0,117570.0,0.16683]
[1752637207448,0.17009695,117580.0,117570.0,0.13316]
[1752637207950,0.45888817,117580.0,117570.0,0.13316]
[1752637208806,0.17213695,117580.0,117570.0,0.13316]
[1752637209020,0.17009695,117580.0,117570.0,0.45428122]
[1752637209964,0.17009695,117580.0,117570.0,0.13316]
[1752637210178,0.45684817,117580.0,117570.0,0.13316]
[1752637210400,0.45888817,117580.0,117570.0,0.13316]
[1752637213535,0.17213695,117580.0,117570.0,0.13316]
[1752637213950,0.17213695,117580.0,117570.0,0.41991122]
[1752637216584,0.17213695,117580.0,117570.0,0.13316]
[1752637217341,0.16469695,117580.0,117570.0,0.13316]
[1752637219507,0.16469695,117580.0,117570.0,0.21891962]
[1752637219741,0.16469695,117580.0,117570.0,0.13316]
[1752637221137,0.45144817,117580.0,117570.0,0.13316]
[1752637221566,0.16469695,117580.0,117570.0,0.13316]
[1752637221776,0.77141939,117580.0,117570.0,0.13108]
[1752637223067,0.48466817,117580.0,117570.0,0.13108]
[1752637223713,0.48466817,117580.0,117570.0,0.001]
[1752637224495,0.19791695,117580.0,117570.0,0.001]
[1752637224694,0.16469695,117580.0,117570.0,0.28975122]
[1752637224912,0.16469695,117580.0,117570.0,0.37551084]
[1752637225122,0.16469695,117580.0,117570.0,0.39051084]
[1752637225746,0.16265695,117580.0,117570.0,0.39051084]
[1752637225959,0.16265695,117580.0,117570.0,0.39348084]
[1752637227245,0.16265695,117580.0,117570.0,0.40988084]
[1752637228859,0.16265695,117580.0,117570.0,0.32412122]
[1752637229537,0.16265695,117580.0,117570.0,0.50273821]
[1752637229767,0.16265695,117580.0,117570.0,0.32412122]
[1752637232502,0.16481695,117580.0,117570.0,0.003]
[1752637233143,0.45468817,117580.0,117570.0,0.003]
[1752637234812,0.16481695,117580.0,117570.0,0.003]
[1752637235026,0.16265695,117580.0,117570.0,0.0193]
[1752637236402,0.16265695,117580.0,117570.0,0.003]
[1752637236812,0.16481695,117580.0,117570.0,0.13304]
[1752637237012,0.16793695,117580.0,117570.0,0.13304]
[1752637237698,0.45468817,117580.0,117570.0,0.13304]
[1752637239185,0.16793695,117580.0,117570.0,0.13304]
[1752637239363,0.45468817,117580.0,117570.0,0.13304]
[1752637242991,0.48538817,117580.0,117570.0,0.001]
[1752637243206,0.48538817,117580.0,117570.0,0.13104]
[1752637246284,0.48538817,117580.0,117570.0,0.001]
[1752637246490,0.48538817,117580.0,117570.0,0.13104]
[1752637246491,0.77213939,117580.0,117570.0,0.13104]
[1752637246698,0.48538817,117580.0,117570.0,0.13104]
[1752637248368,0.48538817,117580.0,117570.0,0.001]
[1752637250067,0.45468817,117580.0,117570.0,0.001]
[1752637252394,0.16793695,117580.0,117570.0,0.001]
[1752637252626,0.16793695,117580.0,117570.0,0.28989122]
[1752637252828,0.16793695,117580.0,117570.0,0.00314]
[1752637253048,0.45468817,117580.0,117570.0,0.00314]
[1752637253291,0.58468817,117580.0,117570.0,0.00314]
[1752637254691,0.45468817,117580.0,117570.0,0.00314]
[1752637254935,0.58468817,117580.0,117570.0,0.00314]
[1752637256620,0.58468817,117580.0,117570.0,0.001]
[1752637257254,0.45468817,117580.0,117570.0,0.001]
[1752637257462,0.58468817,117580.0,117570.0,0.001]
[1752637258480,0.45468817,117580.0,117570.0,0.001]
[1752637258702,0.58468817,117580.0,117570.0,0.001]
[1752637258923,0.45468817,117580.0,117570.0,0.001]
[1752637259150,0.29793695,117580.0,117570.0,0.001]
[1752637259374,0.29793695,117580.0,117570.0,0.00314]
[1752637259842,0.58468817,117580.0,117570.0,0.001]
[1752637260075,0.60088817,117580.0,117570.0,0.001]
[1752637264737,0.58468817,117580.0,117570.0,0.001]
[1752637267142,0.29793695,117580.0,117570.0,0.001]
[1752637267402,0.16793695,117580.0,117570.0,0.001]
[1752637267595,0.29789695,117580.0,117570.0,0.001]
[1752637267833,0.58464817,117580.0,117570.0,0.001]
[1752637268056,0.60044817,117580.0,117570.0,0.001]
[1752637268726,0.58464817,117580.0,117570.0,0.001]
[1752637270948,0.29789695,117580.0,117570.0,0.001]
[1752637271359,0.29789695,117580.0,117570.0,0.17111142]
[1752637271568,0.29789695,117580.0,117570.0,0.17313142]
[1752637272565,0.29789695,117580.0,117570.0,0.00302]
[1752637272775,0.29789695,117580.0,117570.0,0.18163699]
[1752637272998,0.31072121,117580.0,117570.0,0.56265325]
[1752637273202,0.32557068,117580.0,117570.0,0.61344359]
[1752637273402,0.19561068,117580.0,117570.0,0.61344359]
[1752637273837,0.20411552,117580.0,117570.0,0.61344359]
[1752637274840,0.01700874,117580.0,117570.0,0.61344359]
[1752637275070,0.02551344,117580.0,117570.0,0.61344359]
[1752637275333,0.01700874,117580.0,117570.0,0.90694359]
[1752637275534,0.53599449,117590.0,117580.0,0.21900613]
[1752637275743,0.53599449,117590.0,117580.0,0.72349712]
[1752637275919,0.53599449,117590.0,117580.0,0.72657712]
[1752637276130,0.53599449,117590.0,117580.0,0.42281657]
[1752637276338,0.51898661,117590.0,117580.0,0.45063122]
[1752637276753,0.51898661,117590.0,117580.0,0.62072817]
[1752637276967,0.51898661,117590.0,117580.0,0.62340817]
[1752637277386,0.51898661,117590.0,117580.0,0.63191301]
[1752637277604,0.52428661,117590.0,117580.0,0.13198]
[1752637277839,0.52428661,117590.0,117580.0,0.12996]
[1752637280260,0.52428661,117590.0,117580.0,0.21571962]
[1752637280479,0.52428661,117590.0,117580.0,0.21773962]
[1752637281209,0.52428661,117590.0,117580.0,0.42548]
[1752637281954,0.52428661,117590.0,117580.0,0.71223122]
[1752637283565,0.52428661,117590.0,117580.0,0.42548]
[1752637283785,0.52428661,117590.0,117580.0,0.71223122]
[1752637286647,0.52428661,117590.0,117580.0,0.42548]
[1752637286851,0.84363783,117590.0,117580.0,0.2935]
[1752637287045,0.84363783,117590.0,117580.0,0.12992]
[1752637287816,0.55688661,117590.0,117580.0,0.12992]
[1752637288050,0.84363783,117590.0,117580.0,0.12992]
[1752637291309,0.97351783,117590.0,117580.0,0.12992]
[1752637291485,0.20413239,117570.0,117560.0,0.8188809]
[1752637291650,0.20413239,117570.0,117560.0,1.03654052]
[1752637292085,0.18927234,117570.0,117560.0,0.41267963]
[1752637292286,0.47602356,117570.0,117560.0,0.42540001]
[1752637292692,0.18927234,117570.0,117560.0,0.42540001]
[1752637293076,0.18927234,117570.0,117560.0,0.71215123]
[1752637293278,0.18712234,117570.0,117560.0,0.89078341]
[1752637293982,0.18712234,117570.0,117560.0,0.97654303]
[1752637296613,0.18712234,117570.0,117560.0,0.85516925]
[1752637296850,0.18712234,117570.0,117560.0,0.98504925]
[1752637297740,0.17861699,117570.0,117560.0,0.98504925]
[1752637298706,0.17861699,117570.0,117560.0,0.85516925]
[1752637298853,0.17861699,117570.0,117560.0,0.98504925]
[1752637299056,0.17861699,117570.0,117560.0,1.01253532]
[1752637300150,0.17861699,117570.0,117560.0,0.88265532]
[1752637300456,0.17861699,117570.0,117560.0,1.01253532]
[1752637300696,0.17861699,117570.0,117560.0,0.88265532]
[1752637300868,0.17861699,117570.0,117560.0,1.01253532]
[1752637302216,0.17861699,117570.0,117560.0,1.02104132]
[1752637302425,0.18712234,117570.0,117560.0,1.02954725]
[1752637302633,0.18712234,117570.0,117560.0,1.02954674]
[1752637302847,0.0255159,117570.0,117560.0,1.04504674]
[1752637303757,0.03402139,117570.0,117560.0,1.04504674]
[1752637303991,0.20413281,117570.0,117560.0,1.04504674]
[1752637304200,0.02551547,117570.0,117560.0,1.04504674]
[1752637304853,0.02551547,117570.0,117560.0,1.33179796]
[1752637305047,0.03402067,117570.0,117560.0,1.33179796]
[1752637305721,0.02551525,117570.0,117560.0,1.33179796]
[1752637305931,0.03402067,117570.0,117560.0,1.33179796]
[1752637306771,0.17860359,117580.0,117570.0,0.18712204]
[1752637307011,0.1956127,117580.0,117570.0,0.60544794]
[1752637307445,0.02551395,117580.0,117570.0,0.60544794]
[1752637308099,0.03401821,117580.0,117570.0,0.60644794]
[1752637308334,0.02551337,117580.0,117570.0,0.60644794]
[1752637308549,0.03401807,117580.0,117570.0,0.60644794]
[1752637310294,0.04252284,117580.0,117570.0,0.60644794]
[1752637310890,0.03401807,117580.0,117570.0,0.89994794]
[1752637311652,0.02551337,117580.0,117570.0,0.89994794]
[1752637313943,0.02551344,117580.0,117570.0,0.89994794]
[1752637314693,0.02551344,117580.0,117570.0,1.02978794]
[1752637315432,0.01700874,117580.0,117570.0,1.02978794]
[1752637315864,0.02551337,117580.0,117570.0,1.02978794]
[1752637316347,0.01700874,117580.0,117570.0,1.02978794]
[1752637316472,0.02551337,117580.0,117570.0,1.02978794]
[1752637316927,0.02551315,117580.0,117570.0,1.02978794]
[1752637318897,0.03401778,117580.0,117570.0,1.02978794]
[1752637320100,0.02551308,117580.0,117570.0,1.02978794]
[1752637320318,0.03401778,117580.0,117570.0,1.02978794]
[1752637320646,0.04252255,117580.0,117570.0,1.02978794]
[1752637323565,0.03401778,117580.0,117570.0,1.02978794]
[1752637325280,0.03401778,117580.0,117570.0,0.74303672]
[1752637325499,0.19561047,117580.0,117570.0,0.89481806]
[1752637326172,0.19561047,117580.0,117570.0,0.90332341]
[1752637327539,0.19561047,117580.0,117570.0,0.91182869]
[1752637329805,0.18710613,117580.0,117570.0,0.91182869]
[1752637331474,0.01700918,117580.0,117570.0,1.00609337]
[1752637331678,0.01700918,117580.0,117570.0,1.03719337]
[1752637337934,0.02551395,117580.0,117570.0,1.03719337]
[1752637339842,0.20411574,117580.0,117570.0,1.03719337]
[1752637340045,0.19561126,117580.0,117570.0,0.71083709]
[1752637340245,0.19561126,117580.0,117570.0,0.99758831]
[1752637341502,0.19561126,117580.0,117570.0,1.00609351]
[1752637342146,0.02551431,117580.0,117570.0,1.01459857]
[1752637342388,0.01700918,117580.0,117570.0,1.01459857]
[1752637343532,0.1956109,117580.0,117570.0,1.01459857]
[1752637344776,0.1956109,117580.0,117570.0,0.92883895]
[1752637344974,0.20411574,117580.0,117570.0,0.92033389]
[1752637345396,0.19927574,117580.0,117570.0,0.92033389]
[1752637346515,0.19927574,117580.0,117570.0,0.92883902]
[1752637348546,0.19077126,117580.0,117570.0,0.91182869]
[1752637348778,0.18710656,117580.0,117570.0,0.90332341]
[1752637350532,0.18710656,117580.0,117570.0,0.98908303]
[1752637357155,0.18710656,117580.0,117570.0,0.98057768]
[1752637357515,0.17860179,117580.0,117570.0,0.98057768]
[1752637359033,0.17860179,117580.0,117570.0,0.69382646]
[1752637359190,0.17860179,117580.0,117570.0,0.98057768]
[1752637359403,0.17860179,117580.0,117570.0,0.69382646]
[1752637359600,0.17529695,117580.0,117570.0,0.2945]
[1752637359801,0.91045939,117580.0,117570.0,0.2945]
[1752637360023,1.25045939,117580.0,117570.0,0.2945]
[1752637364094,1.25045939,117580.0,117570.0,0.001]
[1752637365947,0.96370817,117580.0,117570.0,0.001]
[1752637367968,1.25045939,117580.0,117570.0,0.001]
[1752637368499,0.67695695,117580.0,117570.0,0.001]
[1752637368693,1.25045939,117580.0,117570.0,0.001]
[1752637369081,0.96370817,117580.0,117570.0,0.001]
[1752637377945,0.67695695,117580.0,117570.0,0.001]
[1752637378156,0.93180817,117580.0,117570.0,0.001]
[1752637378358,0.63981695,117580.0,117570.0,0.47159821]
[1752637378560,0.64179695,117580.0,117570.0,0.55428783]
[1752637379115,0.64490695,117580.0,117570.0,0.55428783]
[1752637379330,0.64179695,117580.0,117570.0,0.56279325]
[1752637380174,0.51207695,117580.0,117570.0,0.56279325]
[1752637381014,0.52710613,117580.0,117570.0,0.60596845]
[1752637381232,0.53561097,117580.0,117570.0,0.60596845]
[1752637381804,0.53561097,117580.0,117570.0,0.89946845]
[1752637383712,0.53561097,117580.0,117570.0,0.90797358]
[1752637384194,0.53561097,117580.0,117570.0,0.89946845]
[1752637384949,0.52710649,117580.0,117570.0,0.89096325]
[1752637385158,0.52710649,117580.0,117570.0,0.8994686]
[1752637386752,0.34,117580.0,117570.0,0.91647894]
[1752637386958,0.53561039,117580.0,117570.0,0.90797388]
[1752637387158,0.53561039,117580.0,117570.0,0.91647908]
[1752637387367,0.53561039,117580.0,117570.0,0.90797388]
[1752637387584,0.52710613,117580.0,117570.0,0.90797388]
[1752637389413,0.52710613,117580.0,117570.0,0.91647908]
[1752637391085,0.52710613,117580.0,117570.0,0.62972786]
[1752637391300,0.52710613,117580.0,117570.0,0.91647908]
[1752637393601,0.36551344,117580.0,117570.0,0.91647828]
[1752637393830,0.54411523,117580.0,117570.0,0.91647828]
[1752637394176,0.36551344,117580.0,117570.0,0.91647828]
[1752637394283,0.37401821,117580.0,117570.0,0.91647828]
[1752637394485,0.54411516,117580.0,117570.0,0.91647828]
[1752637394687,0.35700881,117580.0,117570.0,0.91647828]
[1752637394896,0.02551308,117580.0,117570.0,0.91647828]
[1752637395110,0.02551301,117580.0,117570.0,0.91647828]
[1752637395513,0.03401756,117580.0,117570.0,0.91647828]
[1752637396430,0.04252226,117580.0,117570.0,0.91647828]
[1752637399512,0.03401756,117580.0,117570.0,0.91647828]
[1752637400253,0.04252226,117580.0,117570.0,0.91647828]
[1752637400688,0.03401756,117580.0,117570.0,0.91647828]
[1752637401616,0.04252226,117580.0,117570.0,0.91647828]
[1752637402342,0.03401756,117580.0,117570.0,1.04611828]
[1752637402550,0.04252226,117580.0,117570.0,1.04611828]
[1752637402813,0.03401756,117580.0,117570.0,1.04611828]
[1752637403747,0.04252226,117580.0,117570.0,1.04611828]
[1752637404305,0.03401756,117580.0,117570.0,1.04611828]
[1752637404527,0.04252226,117580.0,117570.0,1.04611828]
[1752637409323,0.03401756,117580.0,117570.0,1.04611828]
[1752637410222,0.04252226,117580.0,117570.0,1.04611828]
[1752637411214,0.00850426,117580.0,117570.0,1.02910765]
[1752637411427,0.01452867,117580.0,117570.0,1.02910765]
[1752637411631,0.01452867,117580.0,117570.0,1.02060325]
[1752637412025,0.01452867,117580.0,117570.0,1.02060332]
[1752637412226,0.18462562,117580.0,117570.0,1.02060332]
[1752637412429,0.20163509,117580.0,117570.0,1.02060332]
[1752637412635,0.20163509,117580.0,117570.0,1.01209783]
[1752637412847,0.19561083,117580.0,117570.0,0.83348084]
[1752637413178,0.19561083,117580.0,117570.0,0.84198641]
[1752637413386,0.19561083,117580.0,117570.0,1.02060332]
[1752637413604,0.18710642,117580.0,117570.0,0.83348084]
[1752637414543,0.18710642,117580.0,117570.0,0.84198641]
[1752637414860,0.18710642,117580.0,117570.0,0.83348084]
[1752637416222,0.18710642,117580.0,117570.0,0.84198641]
[1752637416994,0.18710642,117580.0,117570.0,1.02060332]
[1752637417439,0.18710599,117580.0,117570.0,1.01209783]
[1752637417649,0.19561076,117580.0,117570.0,1.02060332]
[1752637417883,0.19561076,117580.0,117570.0,1.02910874]
[1752637418300,0.19561076,117580.0,117570.0,0.83348084]
[1752637419381,0.17860172,117580.0,117570.0,0.53032962]
[1752637419615,0.17860172,117580.0,117570.0,0.71612122]
[1752637421140,0.17860172,117580.0,117570.0,0.42937]
[1752637421358,0.17860172,117580.0,117570.0,0.71612122]
[1752637427204,0.17009695,117580.0,117570.0,0.71612122]
[1752637428021,0.17009695,117580.0,117570.0,0.80188084]
[1752637432430,0.17009695,117580.0,117570.0,0.81038641]
[1752637432642,0.18710642,117580.0,117570.0,0.82538641]
[1752637432752,0.19561112,117580.0,117570.0,0.82538641]
[1752637433489,0.19561112,117580.0,117570.0,0.81688084]
[1752637434101,0.19561112,117580.0,117570.0,0.82538641]
[1752637434327,0.19561112,117580.0,117570.0,0.81688084]
[1752637434530,0.19561112,117580.0,117570.0,0.82538641]
[1752637434735,0.19561112,117580.0,117570.0,0.81688084]
[1752637435141,0.19561112,117580.0,117570.0,0.80188084]
[1752637435516,0.19561112,117580.0,117570.0,0.81038641]
[1752637436713,0.19561112,117580.0,117570.0,0.84268641]
[1752637438353,0.19561112,117580.0,117570.0,1.02130332]
[1752637438534,0.19561112,117580.0,117570.0,1.01279783]
[1752637438958,0.19561112,117580.0,117570.0,1.02130332]
[1752637439310,0.19561112,117580.0,117570.0,1.01279783]
[1752637439515,0.19561112,117580.0,117570.0,1.02130332]
[1752637439916,0.19561112,117580.0,117570.0,1.02980874]
[1752637440097,0.19561112,117580.0,117570.0,1.02130332]
[1752637440359,0.19561112,117580.0,117570.0,0.7345521]
[1752637440573,0.19561112,117580.0,117570.0,1.02130332]
[1752637440751,0.19561112,117580.0,117570.0,1.02980874]
[1752637440985,0.19561112,117580.0,117570.0,1.02130332]
[1752637441580,0.18710628,117580.0,117570.0,1.02130332]
[1752637441783,0.19561112,117580.0,117570.0,1.02980867]
[1752637442191,0.18710628,117580.0,117570.0,1.02980867]
[1752637442410,0.19561112,117580.0,117570.0,1.02980867]
[1752637442563,0.19561112,117580.0,117570.0,1.02130332]
[1752637442771,0.19561112,117580.0,117570.0,0.98900332]
[1752637443183,0.19561112,117580.0,117570.0,0.98049783]
[1752637443378,0.19561112,117580.0,117570.0,0.98900332]
[1752637443931,0.19561112,117580.0,117570.0,0.99750874]
[1752637444472,0.19561112,117580.0,117570.0,0.98900332]
[1752637445019,0.19561112,117580.0,117570.0,0.99750874]
[1752637445566,0.19561112,117580.0,117570.0,1.00601409]
[1752637445744,0.19561112,117580.0,117570.0,0.99750874]
[1752637445947,0.19561112,117580.0,117570.0,1.00601409]
[1752637446669,0.18710628,117580.0,117570.0,1.046019]
[1752637447527,0.19561105,117580.0,117570.0,1.046019]
[1752637447942,0.18710628,117580.0,117570.0,1.03751351]
[1752637448174,0.18710628,117580.0,117570.0,1.04601864]
[1752637448616,0.18710599,117580.0,117570.0,1.04601828]
[1752637448859,0.18710599,117580.0,117570.0,1.03751322]
[1752637449066,0.19561076,117580.0,117570.0,1.03751322]
[1752637449272,0.19561076,117580.0,117570.0,1.02900809]
[1752637450145,0.18710599,117580.0,117570.0,1.04601828]
[1752637450344,0.19561076,117580.0,117570.0,1.02900809]
[1752637450767,0.19561076,117580.0,117570.0,1.03751322]
[1752637450972,0.19561076,117580.0,117570.0,1.02900809]
[1752637451414,0.19561076,117580.0,117570.0,1.02050289]
[1752637451595,0.19561076,117580.0,117570.0,1.01260809]
[1752637451803,0.18710599,117580.0,117570.0,1.10662343]
[1752637452032,0.00850434,117580.0,117570.0,1.13626385]
[1752637452258,0.3404,117590.0,117580.0,0.22631061]
[1752637452480,0.00890347,117590.0,117580.0,0.53239051]
[1752637452742,0.00890347,117590.0,117580.0,1.10589295]
[1752637452958,0.0004,117590.0,117580.0,1.10589295]
[1752637453165,0.0004,117590.0,117580.0,0.53239051]
[1752637453816,0.00890354,117590.0,117580.0,1.10589295]
[1752637454039,0.00890354,117590.0,117580.0,1.13204476]
[1752637454252,0.0004,117590.0,117580.0,0.55854232]
[1752637454473,0.00890347,117590.0,117580.0,1.13204476]
[1752637454686,0.0004,117590.0,117580.0,1.13204476]
[1752637455410,0.01740708,117590.0,117580.0,0.55854232]
[1752637455637,0.02591084,117590.0,117580.0,1.13879354]
[1752637456495,0.01740708,117590.0,117580.0,1.13879354]
[1752637457280,0.02591084,117590.0,117580.0,1.13879354]
[1752637457902,0.01740708,117590.0,117580.0,1.13879354]
[1752637458108,0.02591077,117590.0,117580.0,1.13879354]
[1752637458500,0.02591077,117590.0,117580.0,1.14749863]
[1752637458704,0.0344146,117590.0,117580.0,1.14749863]
[1752637458906,0.0344146,117590.0,117580.0,0.86074741]
[1752637459087,0.02591077,117590.0,117580.0,1.14749863]
[1752637461343,0.0344146,117590.0,117580.0,1.14749863]
[1752637461599,0.02591077,117590.0,117580.0,0.73118741]
[1752637461809,0.02591084,117590.0,117580.0,1.01793863]
[1752637462030,0.19599427,117590.0,117580.0,0.52223286]
[1752637462254,0.52059549,117590.0,117580.0,0.02615181]
[1752637462473,0.51209173,117590.0,117580.0,0.15799181]
[1752637462682,0.51209173,117590.0,117580.0,0.13184]
[1752637463358,0.51209173,117590.0,117580.0,0.15728779]
[1752637465081,0.22534051,117590.0,117580.0,0.15728779]
[1752637465295,0.51209173,117590.0,117580.0,0.15728779]
[1752637465897,0.51209173,117590.0,117580.0,0.22440948]
[1752637466493,0.51209173,117590.0,117580.0,0.09256948]
[1752637466721,0.51209173,117590.0,117580.0,0.22452948]
[1752637467636,0.51209173,117590.0,117580.0,0.51802948]
[1752637468064,0.51209173,117590.0,117580.0,0.45090779]
[1752637469374,0.22534051,117590.0,117580.0,0.45090779]
[1752637469581,0.51209173,117590.0,117580.0,0.45090779]
[1752637470104,0.51209173,117590.0,117580.0,0.62950958]
[1752637470976,0.51209173,117590.0,117580.0,0.63801428]
[1752637471195,0.19274051,117590.0,117580.0,1.03819864]
[1752637471400,0.01954802,117590.0,117580.0,1.03819864]
[1752637472199,0.19813463,117590.0,117580.0,1.03819878]
[1752637472372,0.19813463,117590.0,117580.0,1.03819835]
[1752637473207,0.19813463,117590.0,117580.0,1.02969394]
[1752637473420,0.18423661,117590.0,117580.0,0.57480436]
[1752637473588,0.21513661,117590.0,117580.0,1.00198042]
[1752637473799,0.49338371,117590.0,117580.0,0.53662741]
[1752637474181,0.49338371,117590.0,117580.0,0.45086779]
[1752637475912,0.20663249,117590.0,117580.0,0.45086779]
[1752637476135,0.49338371,117590.0,117580.0,0.45086779]
[1752637477004,0.20663249,117590.0,117580.0,0.45086779]
[1752637477215,0.20663249,117590.0,117580.0,0.62946951]
[1752637477431,0.20663249,117590.0,117580.0,0.71738913]
[1752637477648,0.20663249,117590.0,117580.0,0.70888436]
[1752637477874,0.20663249,117590.0,117580.0,0.7173892]
[1752637478094,0.20663249,117590.0,117580.0,1.00414042]
[1752637478868,0.20663249,117590.0,117580.0,1.01268512]
[1752637479088,0.19133249,117590.0,117580.0,1.01268512]
[1752637479988,0.17573249,117590.0,117580.0,1.01268512]
[1752637481071,0.17262249,117590.0,117580.0,1.01268512]
[1752637481209,0.17262249,117590.0,117580.0,1.02118975]
[1752637481451,0.20663839,117590.0,117580.0,1.02118975]
[1752637481747,0.20663839,117590.0,117580.0,1.0296943]
[1752637481946,0.20663839,117590.0,117580.0,1.03819878]
[1752637482188,0.20663839,117590.0,117580.0,1.03819835]
[1752637482401,0.01740737,117590.0,117580.0,0.99492827]
[1752637482604,0.19599347,117590.0,117580.0,1.10983952]
[1752637483782,0.18958029,117590.0,117580.0,1.0896507]
[1752637485166,0.17257249,117590.0,117580.0,0.91955375]
[1752637485379,0.49474371,117590.0,117580.0,0.45070779]
[1752637485609,0.49474371,117590.0,117580.0,0.31894779]
[1752637485831,0.49474371,117590.0,117580.0,0.45066779]
[1752637487403,0.20799249,117590.0,117580.0,0.45066779]
[1752637487617,0.49474371,117590.0,117580.0,0.45066779]
[1752637487830,0.49474371,117590.0,117580.0,0.53642741]
[1752637488959,0.20799249,117590.0,117580.0,0.53642741]
[1752637490028,0.20799249,117590.0,117580.0,0.7150292]
[1752637490237,0.20799249,117590.0,117580.0,0.53850741]
[1752637490878,0.19209249,117590.0,117580.0,0.53850741]
[1752637491085,0.17569249,117590.0,117580.0,0.72561397]
[1752637491324,0.17569249,117590.0,117580.0,0.53850741]
[1752637491604,0.17569249,117590.0,117580.0,0.70860436]
[1752637491815,0.17569249,117590.0,117580.0,0.53850741]
[1752637492646,0.19129249,117590.0,117580.0,0.53850741]
[1752637493061,0.17569249,117590.0,117580.0,0.53850741]
[1752637493267,0.17569249,117590.0,117580.0,0.70860436]
[1752637493472,0.17569249,117590.0,117580.0,0.53850741]
[1752637494252,0.17048249,117590.0,117580.0,0.11328741]
[1752637494467,0.17048249,117590.0,117580.0,0.51742425]
[1752637496013,0.20789249,117590.0,117580.0,0.15688779]
[1752637500066,0.20789249,117590.0,117580.0,0.45038779]
[1752637502487,0.20477249,117590.0,117580.0,0.63106958]
[1752637502724,0.17257249,117590.0,117580.0,0.63957435]
[1752637503375,0.17257249,117590.0,117580.0,0.64807905]
[1752637503582,0.17257249,117590.0,117580.0,0.7423433]
[1752637504055,0.00890383,117590.0,117580.0,1.25246026]
[1752637504276,0.02591113,117590.0,117580.0,0.87023763]
[1752637504499,0.02591113,117590.0,117580.0,1.25246026]
[1752637504715,0.0174073,117590.0,117580.0,1.25246026]
[1752637505137,0.03441496,117590.0,117580.0,1.25246026]
[1752637505381,0.03441496,117590.0,117580.0,0.87023763]
[1752637505592,0.03441496,117590.0,117580.0,1.25246026]
[1752637505810,0.2130015,117590.0,117580.0,0.87023763]
[1752637506485,0.20449789,117590.0,117580.0,0.87023741]
[1752637506929,0.18958044,117590.0,117580.0,0.40653807]
[1752637507163,0.60612307,117590.0,117580.0,0.45222779]
[1752637507386,0.22390044,117590.0,117580.0,0.45014779]
[1752637511697,0.22390044,117590.0,117580.0,0.31894779]
[1752637511912,0.22390044,117590.0,117580.0,0.45022779]
[1752637512335,0.22390044,117590.0,117580.0,0.5176685]
[1752637512546,0.22390044,117590.0,117580.0,0.3863885]
[1752637512759,0.22390044,117590.0,117580.0,0.5176285]
[1752637513638,0.22390044,117590.0,117580.0,0.5175885]
[1752637514278,0.22390044,117590.0,117580.0,0.5175485]
[1752637515323,0.22390044,117590.0,117580.0,0.31894779]
[1752637515471,0.21869044,117590.0,117580.0,0.62548474]
[1752637515669,0.18749044,117590.0,117580.0,0.62229474]
[1752637515891,0.18749044,117590.0,117580.0,0.45219779]
[1752637516127,0.18950044,117590.0,117580.0,0.45219779]
[1752637516633,0.18950044,117590.0,117580.0,0.32103779]
[1752637516932,0.18950044,117590.0,117580.0,0.45215779]
[1752637517146,0.18950044,117590.0,117580.0,0.62221474]
[1752637517354,0.18950044,117590.0,117580.0,0.53787741]
[1752637518414,0.18950044,117590.0,117580.0,0.71647913]
[1752637519035,0.17249249,117590.0,117580.0,0.70797436]
[1752637519232,0.17249249,117590.0,117580.0,0.72498397]
[1752637519439,0.17249249,117590.0,117580.0,0.73348867]
[1752637522455,0.17249249,117590.0,117580.0,0.7334886]
[1752637522883,0.17249249,117590.0,117580.0,0.72498397]
[1752637523185,0.17249249,117590.0,117580.0,0.45211779]
[1752637523911,0.17249249,117590.0,117580.0,0.62221474]
[1752637524356,0.17249249,117590.0,117580.0,0.45211779]
[1752637524999,0.45915639,117590.0,117580.0,0.45211779]
[1752637525628,0.46214639,117590.0,117580.0,0.45211779]
[1752637525824,0.47814639,117590.0,117580.0,0.45211779]
[1752637527642,0.49384639,117590.0,117580.0,0.45211779]
[1752637528546,0.49384639,117590.0,117580.0,0.31894779]
[1752637528750,0.49384639,117590.0,117580.0,0.44978779]
[1752637532367,0.20718249,117590.0,117580.0,0.53554741]
[1752637532815,0.49384639,117590.0,117580.0,0.53554741]
[1752637533779,0.49384639,117590.0,117580.0,0.44978779]
[1752637536519,0.49384639,117590.0,117580.0,0.45187779]
[1752637537008,0.17548249,117590.0,117580.0,0.45187779]
[1752637537673,0.18398646,117590.0,117580.0,0.62197474]